bitfinex/quotes_SOLUSD_20250217
["timestamp","ask_amount","ask_price","bid_price","bid_amount"]
[1739817911308,0.063,176.35,176.34,13.41184853]
[1739817911510,8.71228326,176.42,176.4,20.0]
[1739817911702,34.7126496,176.46,176.41,26.29483872]
[1739817911905,34.7126496,176.46,176.44,12.25390852]
[1739817912703,34.7126496,176.46,176.44,19.09914833]
[1739817913727,34.7126496,176.46,176.43,19.09914833]
[1739817913929,34.7126496,176.46,176.42,19.09914833]
[1739817914447,34.7126496,176.46,176.43,19.09914833]
[1739817915139,34.7126496,176.46,176.44,32.51099686]
[1739817915627,14.23244618,176.45,176.44,32.51099686]
[1739817917149,0.063,176.48,176.45,13.41184853]
[1739817917332,0.063,176.48,176.44,19.09914833]
[1739817918447,0.063,176.48,176.45,19.09914833]
[1739817918620,0.063,176.48,176.47,19.09914833]
[1739817919045,0.063,176.48,176.47,38.17759686]
[1739817919234,0.063,176.48,176.47,39.69749686]
[1739817921235,0.063,176.52,176.47,26.28564833]
[1739817921443,0.063,176.52,176.49,19.09914833]
[1739817922145,0.063,176.52,176.5,19.09914833]
[1739817922648,0.063,176.52,176.51,24.76454833]
[1739817923946,0.063,176.52,176.51,38.80425274]
[1739817925136,0.063,176.52,176.51,38.17639686]
[1739817925852,0.063,176.52,176.51,38.80414428]
[1739817926956,0.063,176.53,176.52,13.41184853]
[1739817927130,0.063,176.53,176.52,32.51099686]
[1739817927330,0.063,176.58,176.56,13.41184853]
[1739817927528,0.063,176.58,176.57,33.13812441]
[1739817929429,0.063,176.58,176.57,38.80152441]
[1739817929825,0.063,176.58,176.57,40.99894169]
[1739817930247,0.063,176.63,176.6,20.0]
[1739817930461,0.063,176.63,176.62,19.09914833]
[1739817930968,0.063,176.63,176.62,32.51099686]
[1739817931463,0.063,176.63,176.62,38.17279686]
[1739817932232,0.063,176.63,176.62,38.79927084]
[1739817932766,0.063,176.63,176.62,40.33987084]
[1739817932971,0.063,176.68,176.67,19.09914833]
[1739817933196,0.063,176.68,176.66,19.09914833]
[1739817933401,0.063,176.68,176.67,24.75934833]
[1739817933586,0.063,176.68,176.67,38.17119686]
[1739817934412,24.50924833,176.74,176.67,19.07204853]
[1739817934707,24.50924833,176.74,176.69,19.09914833]
[1739817934885,24.50924833,176.74,176.68,19.09914833]
[1739817935277,24.50924833,176.74,176.68,24.75894833]
[1739817935476,8.1996,176.77,176.69,19.09914833]
[1739817935695,19.09914833,176.75,176.7,19.09914833]
[1739817935902,19.09914833,176.76,176.7,19.09914833]
[1739817936109,24.75664833,176.76,176.7,19.09914833]
[1739817936281,19.09914833,176.75,176.69,32.51099686]
[1739817937008,24.75664833,176.76,176.7,24.75834833]
[1739817937306,19.09914833,176.75,176.7,24.75834833]
[1739817937501,24.25664833,176.76,176.7,24.75834833]
[1739817938112,19.09914833,176.73,176.67,0.62565975]
[1739817938411,19.09914833,176.71,176.66,20.0]
[1739817938579,19.09914833,176.69,176.65,5.6606]
[1739817939004,19.09914833,176.7,176.65,5.6606]
[1739817939689,19.09914833,176.7,176.65,24.75974833]
[1739817940606,19.09914833,176.7,176.64,24.76034833]
[1739817941596,19.09914833,176.71,176.65,19.09914833]
[1739817942372,19.09914833,176.7,176.64,24.76034833]
[1739817942576,19.09914833,176.69,176.64,24.76034833]
[1739817942775,19.09914833,176.7,176.64,24.76034833]
[1739817943299,1.06112454,176.75,176.64,24.76034833]
[1739817943300,5.658,176.74,176.67,19.09914833]
[1739817943602,24.75714833,176.74,176.68,19.09914833]
[1739817943900,19.09914833,176.73,176.68,19.09914833]
[1739817944881,24.75754833,176.73,176.68,19.09914833]
[1739817945210,24.75754833,176.73,176.68,24.75894833]
[1739817945703,24.75754833,176.73,176.68,19.09914833]
[1739817946299,24.75754833,176.73,176.67,19.09914833]
[1739817946495,24.75754833,176.73,176.62,1.5406]
[1739817946496,19.09914833,176.7,176.64,39.09914833]
[1739817946703,19.09914833,176.69,176.66,20.0]
[1739817947103,19.09914833,176.72,176.66,39.09914833]
[1739817947490,19.09914833,176.71,176.66,20.0]
[1739817948098,19.09914833,176.7,176.66,20.0]
[1739817948301,19.09914833,176.7,176.6,108.91914833]
[1739817948302,19.09914833,176.67,176.6,108.91914833]
[1739817948484,19.09914833,176.66,176.63,20.0]
[1739817948683,19.09914833,176.67,176.63,20.063]
[1739817948885,1.665,176.7,176.64,19.09914833]
[1739817949115,1.665,176.7,176.65,19.09914833]
[1739817949805,1.665,176.7,176.66,19.09914833]
[1739817950108,5.659,176.71,176.66,19.09914833]
[1739817950411,19.09914833,176.69,176.63,44.82344833]
[1739817950702,19.09914833,176.68,176.63,20.063]
[1739817950882,19.09914833,176.67,176.63,20.063]
[1739817951278,24.75944833,176.67,176.63,20.063]
[1739817951710,20.16052377,176.7,176.64,19.09914833]
[1739817952008,24.75874833,176.69,176.63,39.16214833]
[1739817952206,19.09914833,176.65,176.63,0.063]
[1739817952397,19.09914833,176.64,176.63,0.063]
[1739817952709,19.09914833,176.66,176.63,0.063]
[1739817953005,24.75994833,176.66,176.63,0.063]
[1739817953179,5.6603,176.67,176.63,0.063]
[1739817953385,5.6603,176.67,176.63,19.16214833]
[1739817954007,5.6603,176.67,176.63,0.063]
[1739817954514,24.75804833,176.71,176.63,13.47484853]
[1739817954811,19.09914833,176.65,176.63,0.063]
[1739817955203,1.06125906,176.7,176.63,0.063]
[1739817955509,19.09914833,176.65,176.63,0.063]
[1739817955990,19.09914833,176.64,176.63,0.063]
[1739817956909,19.09914833,176.66,176.63,0.063]
[1739817957107,19.09914833,176.68,176.63,0.063]
[1739817957305,19.09914833,176.7,176.64,19.09914833]
[1739817957611,24.75774833,176.72,176.66,19.09914833]
[1739817957804,5.6586,176.72,176.66,19.09914833]
[1739817958007,5.6586,176.72,176.67,19.09914833]
[1739817958417,19.09914833,176.71,176.65,19.09914833]
[1739817958599,20.16033175,176.71,176.65,19.09914833]
[1739817959109,19.09914833,176.71,176.65,19.09914833]
[1739817959324,25.81938712,176.71,176.65,19.09914833]
[1739817960114,0.03,176.73,176.69,19.09914833]
[1739817960313,0.03,176.73,176.71,19.09914833]
[1739817960617,0.03,176.73,176.7,19.09914833]
[1739817961011,19.12914833,176.73,176.68,20.0]
[1739817961396,0.03,176.73,176.68,39.09914833]
[1739817961593,24.78754833,176.73,176.67,19.09914833]
[1739817961798,19.09914833,176.72,176.67,19.09914833]
[1739817962098,24.78754833,176.73,176.67,19.09914833]
[1739817962413,0.03,176.73,176.7,19.09914833]
[1739817962614,0.03,176.73,176.71,19.09914833]
[1739817962917,0.03,176.73,176.72,19.09914833]
[1739817963093,0.03,176.73,176.69,19.09914833]
[1739817963299,24.78754833,176.73,176.67,19.09914833]
[1739817964421,0.03,176.73,176.69,19.09914833]
[1739817964716,24.78744833,176.73,176.67,19.09914833]
[1739817965022,19.09914833,176.7,176.64,24.76024833]
[1739817965220,19.09914833,176.71,176.65,19.09914833]
[1739817965699,24.75804833,176.71,176.65,19.09914833]
[1739817965903,0.03,176.73,176.7,19.09914833]
[1739817966327,0.03,176.73,176.71,19.09914833]
[1739817967223,0.03,176.73,176.72,19.09914833]
[1739817967727,0.03,176.73,176.72,32.51099686]
[1739817967901,0.03,176.73,176.72,38.16959686]
[1739817968621,0.03,176.73,176.72,19.09914833]
[1739817968994,0.03,176.73,176.69,5.6596]
[1739817969204,19.12914833,176.73,176.67,19.09914833]
[1739817969404,19.12914833,176.73,176.65,6.2809]
[1739817969405,19.09914833,176.71,176.65,25.38004833]
[1739817969815,0.03,176.73,176.64,20.66724833]
[1739817969816,19.09914833,176.7,176.64,20.66724833]
[1739817970007,19.09914833,176.7,176.64,1.5681]
[1739817970218,19.09914833,176.7,176.64,20.66724833]
[1739817970915,19.09914833,176.7,176.64,24.76004833]
[1739817971316,19.09914833,176.7,176.64,19.09914833]
[1739817971616,19.09914833,176.65,176.63,0.063]
[1739817971820,20.16075873,176.64,176.63,0.063]
[1739817972726,19.09914833,176.65,176.63,0.063]
[1739817973027,5.6596,176.7,176.64,19.09914833]
[1739817973226,5.6596,176.7,176.65,19.09914833]
[1739817973643,1.6244,176.72,176.67,19.09914833]
[1739817973808,30.93984833,176.73,176.67,19.09914833]
[1739817974425,24.78754833,176.73,176.67,19.09914833]
[1739817974613,20.16024662,176.72,176.66,19.09914833]
[1739817974819,19.09914833,176.67,176.63,0.063]
[1739817975638,24.75934833,176.68,176.63,0.063]
[1739817976133,1.06109829,176.72,176.63,19.16214833]
[1739817976333,19.09914833,176.69,176.63,19.16214833]
[1739817976836,19.09914833,176.67,176.63,0.063]
[1739817977333,19.09914833,176.65,176.63,0.063]
[1739817977534,19.09914833,176.64,176.63,0.063]
[1739817977720,19.09914833,176.65,176.63,0.063]
[1739817978334,19.09914833,176.66,176.63,0.063]
[1739817978534,20.16066306,176.65,176.63,0.063]
[1739817979115,19.09914833,176.65,176.63,0.063]
[1739817979309,24.75944833,176.67,176.63,0.063]
[1739817979516,20.16056945,176.66,176.63,0.063]
[1739817979728,19.09914833,176.65,176.63,0.063]
[1739817980331,24.75904833,176.68,176.63,0.063]
[1739817980525,20.16068223,176.69,176.63,19.16214833]
[1739817980835,24.75814833,176.71,176.66,19.09914833]
[1739817981213,24.75814833,176.71,176.65,19.09914833]
[1739817981731,19.09914833,176.72,176.66,19.09914833]
[1739817981929,20.19026133,176.73,176.67,19.09914833]
[1739817982226,24.78754833,176.73,176.68,19.09914833]
[1739817982427,5.6884,176.73,176.68,19.09914833]
[1739817983138,24.78754833,176.73,176.68,19.09914833]
[1739817983440,19.09914833,176.71,176.66,19.09914833]
[1739817983938,19.09914833,176.69,176.63,19.16214833]
[1739817984115,19.09914833,176.68,176.63,0.063]
[1739817984314,19.09914833,176.7,176.64,19.09914833]
[1739817985112,19.09914833,176.7,176.64,24.76014833]
[1739817985934,19.09914833,176.7,176.64,5.661]
[1739817986234,24.75814833,176.71,176.65,19.09914833]
[1739817986824,19.09914833,176.7,176.64,24.76014833]
[1739817987215,19.09914833,176.68,176.63,20.063]
[1739817987925,19.09914833,176.66,176.63,20.063]
[1739817988235,19.09914833,176.67,176.63,20.063]
[1739817988430,19.09914833,176.68,176.63,20.063]
[1739817988639,19.09914833,176.69,176.63,44.82354833]
[1739817988825,24.75814833,176.71,176.64,19.09914833]
[1739817989236,24.75814833,176.71,176.65,19.09914833]
[1739817989417,19.12914833,176.72,176.66,19.09914833]
[1739817989615,19.09914833,176.71,176.65,24.75974833]
[1739817989816,19.12914833,176.72,176.66,19.09914833]
[1739817991041,19.09914833,176.71,176.65,24.75974833]
[1739817991547,19.09914833,176.71,176.63,34.10124066]
[1739817991548,19.09914833,176.67,176.63,20.063]
[1739817991724,19.09914833,176.66,176.63,0.063]
[1739817991924,19.09914833,176.65,176.63,0.063]
[1739817992533,19.09914833,176.64,176.63,0.063]
[1739817993738,24.76034833,176.64,176.63,0.063]
[1739817994132,19.09914833,176.65,176.63,0.063]
[1739817994322,19.09914833,176.66,176.63,0.063]
[1739817994643,19.09914833,176.64,176.63,0.063]
[1739817996247,24.76034833,176.64,176.63,0.063]
[1739817996433,19.09914833,176.64,176.63,0.063]
[1739817997053,19.09914833,176.65,176.63,0.063]
[1739817997441,20.16070636,176.64,176.63,0.063]
[1739817998336,25.82190636,176.64,176.63,0.063]
[1739818000345,6.0152,176.63,176.52,89.78]
[1739818000550,19.09914833,176.56,176.52,89.78]
[1739818001050,19.09914833,176.58,176.52,114.54414833]
[1739818001668,102.26122609,176.62,176.56,19.09914833]
[1739818001951,20.16122609,176.62,176.55,19.09914833]
[1739818002657,25.82312609,176.62,176.56,5.6637]
[1739818002854,19.09914833,176.61,176.55,24.76324833]
[1739818003151,20.16095251,176.6,176.54,19.09914833]
[1739818003339,19.09914833,176.58,176.53,5.6645]
[1739818003662,19.09914833,176.59,176.53,24.76364833]
[1739818004068,19.09914833,176.6,176.54,19.09914833]
[1739818004238,1.06188529,176.61,176.55,19.09914833]
[1739818004438,5.6619,176.62,176.56,19.09914833]
[1739818004641,19.09914833,176.61,176.55,5.664]
[1739818004945,19.09914833,176.58,176.53,5.6645]
[1739818006435,19.09914833,176.6,176.54,19.09914833]
[1739818006675,20.16102757,176.6,176.54,19.09914833]
[1739818008059,25.82362757,176.6,176.56,0.063]
[1739818008286,20.16102757,176.6,176.56,0.063]
[1739818008453,24.76134833,176.61,176.56,0.063]
[1739818008658,19.09914833,176.59,176.56,0.063]
[1739818008858,20.16105225,176.58,176.56,0.063]
[1739818009066,19.09914833,176.57,176.56,0.063]
[1739818009266,19.09914833,176.58,176.56,0.063]
[1739818010282,19.09914833,176.57,176.56,0.063]
[1739818010484,20.16114659,176.57,176.56,0.063]
[1739818010860,20.16114659,176.57,176.56,0.0001]
[1739818010861,27.93164659,176.57,176.56,0.0001]
[1739818011074,27.93164659,176.57,176.46,0.063]
[1739818011274,19.09914833,176.49,176.46,0.063]
[1739818011579,19.09914833,176.5,176.46,0.063]
[1739818011779,19.09914833,176.51,176.46,0.063]
[1739818013280,24.76374833,176.54,176.48,19.09914833]
[1739818013494,19.09914833,176.55,176.49,19.09914833]
[1739818014475,24.76264833,176.57,176.51,19.09914833]
[1739818014679,5.6631,176.59,176.54,19.09914833]
[1739818014866,25.82367032,176.6,176.54,19.09914833]
[1739818015383,24.76134833,176.61,176.55,19.09914833]
[1739818015584,24.76104833,176.62,176.56,19.09914833]
[1739818015778,20.16089445,176.61,176.55,19.09914833]
[1739818015957,20.16089445,176.61,176.55,39.09914833]
[1739818016376,25.82314148,176.61,176.55,39.09914833]
[1739818016689,24.76134833,176.61,176.55,39.09914833]
[1739818017863,19.09914833,176.6,176.55,20.0]
[1739818018064,19.09914833,176.58,176.52,108.91914833]
[1739818018282,19.09914833,176.59,176.53,19.09914833]
[1739818018484,1.06180422,176.6,176.54,19.09914833]
[1739818018674,19.09914833,176.62,176.56,19.09914833]
[1739818018877,20.16087852,176.62,176.56,19.09914833]
[1739818019276,19.09914833,176.61,176.55,19.09914833]
[1739818019885,19.09914833,176.62,176.56,19.09914833]
[1739818020091,24.76064833,176.63,176.57,19.09914833]
[1739818021084,19.09914833,176.61,176.55,19.09914833]
[1739818021276,19.09914833,176.59,176.54,13.41184853]
[1739818021883,19.09914833,176.6,176.54,32.51099686]
[1739818024805,19.09914833,176.6,176.52,89.82]
[1739818024806,19.09914833,176.58,176.55,20.0]
[1739818024975,19.09914833,176.57,176.52,89.82]
[1739818025174,19.09914833,176.56,176.52,89.82]
[1739818026083,19.09914833,176.58,176.52,108.91914833]
[1739818026775,24.76224833,176.58,176.52,108.91914833]
[1739818027298,38.92004833,176.58,176.52,89.82]
[1739818027480,19.09914833,176.53,176.52,89.82]
[1739818027680,19.09914833,176.53,176.47,0.063]
[1739818027877,19.09914833,176.48,176.47,0.063]
[1739818028278,24.76544833,176.48,176.47,0.063]
[1739818028480,19.09914833,176.48,176.47,0.063]
[1739818029084,24.76544833,176.48,176.47,0.063]
[1739818029482,25.82817676,176.48,176.47,0.063]
[1739818030399,24.76544833,176.48,176.47,0.063]
[1739818031917,19.09914833,176.49,176.47,0.063]
[1739818032096,19.09914833,176.53,176.47,19.16214833]
[1739818032608,19.09914833,176.54,176.48,19.09914833]
[1739818033510,25.82575646,176.55,176.49,19.09914833]
[1739818033825,6.72660813,176.55,176.49,19.09914833]
[1739818034619,19.09914833,176.56,176.47,0.063]
[1739818034620,1.06214519,176.56,176.5,19.09914833]
[1739818034931,19.09914833,176.55,176.49,19.09914833]
[1739818036018,19.09914833,176.54,176.48,19.09914833]
[1739818037902,24.76354833,176.55,176.48,19.09914833]
[1739818040423,19.09914833,176.53,176.47,13.47484853]
[1739818040626,19.09914833,176.53,176.47,0.063]
[1739818040920,19.09914833,176.5,176.47,0.063]
[1739818041117,19.09914833,176.48,176.47,0.063]
[1739818041313,82.1,176.53,176.47,0.063]
[1739818041522,1.06240868,176.52,176.47,19.16214833]
[1739818041718,20.16155701,176.52,176.47,0.063]
[1739818041915,19.09914833,176.48,176.47,0.063]
[1739818043111,19.09914833,176.5,176.47,0.063]
[1739818043928,19.09914833,176.51,176.47,0.063]
[1739818044142,19.09914833,176.49,176.47,0.063]
[1739818045021,19.09914833,176.48,176.47,0.063]
[1739818046018,20.16194513,176.48,176.47,0.063]
[1739818046328,25.82824513,176.48,176.47,0.0001]
[1739818048716,25.82824513,176.48,176.46,0.0001]
[1739818048924,19.09914833,176.47,176.45,0.0001]
[1739818049239,20.0,176.42,176.37,0.03]
[1739818049414,19.09914833,176.39,176.37,0.03]
[1739818049614,20.16249848,176.39,176.37,0.03]
[1739818050351,25.83169848,176.39,176.37,0.03]
[1739818050846,25.83169848,176.39,176.38,0.0001]
[1739818051041,25.83169848,176.39,176.37,0.0001]
[1739818051217,19.09914833,176.38,176.37,0.0001]
[1739818051844,32.51099686,176.38,176.3,0.03]
[1739818052038,19.09914833,176.31,176.3,0.03]
[1739818052248,1.06360571,176.37,176.3,0.03]
[1739818052553,19.09914833,176.31,176.3,0.03]
[1739818052849,44.51319666,176.31,176.3,0.03]
[1739818053241,19.09914833,176.31,176.3,0.03]
[1739818053752,38.19829666,176.31,176.3,0.03]
[1739818054541,43.87009666,176.31,176.3,0.03]
[1739818054741,44.93400301,176.31,176.3,0.03]
[1739818054951,25.83485468,176.31,176.3,0.03]
[1739818055758,24.77094833,176.31,176.3,0.03]
[1739818056931,25.83462638,176.31,176.3,0.03]
[1739818058860,68.01047637,176.31,176.29,0.03]
[1739818059057,112.73749916,176.3,176.29,0.03]
[1739818061052,13.41184853,176.29,176.26,0.03]
[1739818061250,30.63749916,176.27,176.26,0.03]
[1739818061655,30.63749916,176.27,176.22,0.03]
[1739818061656,30.63749916,176.23,176.22,0.03]
[1739818063349,36.31189916,176.23,176.22,0.03]
[1739818064570,36.31189916,176.23,176.2,0.03]
[1739818064571,80.36124685,176.23,176.2,0.03]
[1739818064873,30.63749916,176.21,176.2,0.03]
[1739818065166,36.31249916,176.21,176.2,0.03]
[1739818066267,36.31249916,176.21,176.2,0.0001]
[1739818066268,49.72434769,176.21,176.2,0.0001]
[1739818066447,13.41184853,176.2,176.12,0.03]
[1739818066771,30.63749916,176.13,176.12,0.03]
[1739818067267,30.63749916,176.15,176.12,0.03]
[1739818067451,31.70216506,176.14,176.12,0.03]
[1739818067653,30.63749916,176.13,176.12,0.03]
[1739818069068,29.88924084,176.13,176.12,0.03]
[1739818069373,48.97868937,176.13,176.12,0.0001]
[1739818069551,50.04380266,176.13,176.12,0.0001]
[1739818070069,50.79206098,176.13,176.12,0.0001]
[1739818070257,68.01771161,176.13,176.11,0.0001]
[1739818070460,30.63749916,176.12,176.11,0.0001]
[1739818070660,44.04934769,176.12,176.11,0.0001]
[1739818071551,49.72724769,176.12,176.11,0.0001]
[1739818072187,50.79234849,176.12,176.11,0.0001]
[1739818076263,13.41184853,176.1,176.09,0.0001]
[1739818076450,45.11462834,176.1,176.09,0.0001]
[1739818077477,45.11462834,176.1,176.0,7.5801]
[1739818077656,30.63749916,176.05,176.0,7.5801]
[1739818077856,1.06527562,176.04,176.0,7.5801]
[1739818078757,5.6799,176.06,176.01,30.63749916]
[1739818078958,1.06519004,176.05,176.02,30.13749916]
[1739818079174,1.06519004,176.05,176.01,30.63749916]
[1739818079681,1.06519524,176.06,176.02,30.63749916]
[1739818079856,1.06519524,176.06,176.01,30.63749916]
[1739818080174,37.3825944,176.06,176.0,38.21759916]
[1739818080553,25.93984118,176.06,176.0,26.77484594]
[1739818080768,20.25994118,176.06,176.0,26.77484594]
[1739818080973,1.06519524,176.06,176.01,19.19474594]
[1739818081179,20.25994118,176.06,176.0,26.77484594]
[1739818081481,25.93994118,176.06,176.0,26.77484594]
[1739818081782,1.06519524,176.06,176.01,19.19474594]
[1739818082376,6.74509524,176.06,176.01,19.19474594]
[1739818082578,25.93984118,176.06,176.0,7.5801]
[1739818082780,4.64,176.05,176.0,7.5801]
[1739818082982,1.06524245,176.04,176.0,26.77484594]
[1739818083500,1.06524245,176.04,176.0,7.5801]
[1739818083699,1.06526859,176.05,176.0,26.77484594]
[1739818083996,25.94021453,176.05,176.0,7.5801]
[1739818084195,4.64,176.04,176.0,7.5801]
[1739818086098,19.19474594,176.02,176.0,7.5801]
[1739818086279,20.26002865,176.01,176.0,7.5801]
[1739818086898,1.06528271,176.01,176.0,7.5801]
[1739818087085,20.26002865,176.01,176.0,7.5801]
[1739818087286,24.90002865,176.01,176.0,7.5801]
[1739818087496,30.58142865,176.01,175.96,0.11311911]
[1739818087699,19.19474594,175.97,175.96,0.11311911]
[1739818087882,38.38949188,175.97,175.96,0.11311911]
[1739818088085,39.45556558,175.97,175.82,19.36037674]
[1739818088290,19.19474594,175.94,175.82,0.1656308]
[1739818088604,19.19474594,175.84,175.8,7.2889308]
[1739818088799,1.06616503,175.93,175.78,19.19474594]
[1739818088800,19.19474594,175.83,175.78,19.19474594]
[1739818088985,20.0,175.92,175.78,19.19474594]
[1739818089187,19.19474594,175.88,175.82,19.19474594]
[1739818089401,19.19474594,175.94,175.87,19.19474594]
[1739818089701,6.74835939,175.99,175.91,18.69474594]
[1739818089922,1.06566999,176.02,175.93,19.19474594]
[1739818090095,1.06566999,176.02,176.0,0.03]
[1739818090096,19.19474594,176.02,176.0,0.03]
[1739818090294,1.06548244,176.04,176.0,0.03]
[1739818090505,0.063,176.04,176.01,19.19474594]
[1739818090703,0.063,176.04,176.0,30.73674538]
[1739818090925,0.063,176.04,176.01,20.0]
[1739818091083,0.063,176.04,176.03,30.70674538]
[1739818091411,0.063,176.04,176.03,44.75244522]
[1739818091709,0.063,176.04,176.03,52.02344522]
[1739818092085,0.063,176.04,176.03,37.97774538]
[1739818092785,0.063,176.04,176.03,51.38959391]
[1739818094811,1.06475253,176.12,176.04,19.09214853]
[1739818094998,1.06475253,176.12,176.07,30.70674538]
[1739818095198,1.06474594,176.12,176.07,30.70674538]
[1739818096406,19.58724853,176.21,176.07,30.70674538]
[1739818096407,31.77150096,176.17,176.1,30.70674538]
[1739818096591,1.06475558,176.17,176.11,30.70674538]
[1739818096792,5.6764,176.17,176.11,30.70674538]
[1739818096987,31.77118578,176.2,176.13,30.70674538]
[1739818097188,6.7398404,176.2,176.15,30.70674538]
[1739818097795,5.6754,176.2,176.16,30.70674538]
[1739818097993,1.06425037,176.21,176.17,30.70674538]
[1739818098312,6.73800153,176.25,176.19,30.70674538]
[1739818098515,37.44474691,176.25,176.19,30.70674538]
[1739818098702,30.70674538,176.23,176.17,30.70674538]
[1739818098895,1.06418805,176.22,176.16,30.70674538]
[1739818099102,1.06418805,176.22,176.17,30.70674538]
[1739818099498,1.06415532,176.23,176.17,30.70674538]
[1739818099702,36.38054538,176.25,176.19,30.70674538]
[1739818099890,1.06412824,176.27,176.21,30.70674538]
[1739818099891,37.44417362,176.27,176.21,30.70674538]
[1739818100092,6.73742824,176.27,176.22,30.70674538]
[1739818100616,30.70674538,176.26,176.2,30.70674538]
[1739818100990,31.77068869,176.25,176.19,30.70674538]
[1739818101202,30.70674538,176.23,176.17,30.70674538]
[1739818101401,31.77088929,176.22,176.16,50.70674538]
[1739818101708,30.70674538,176.24,176.17,30.70674538]
[1739818101894,1.0641179,176.23,176.17,30.70674538]
[1739818102306,37.44536328,176.23,176.17,30.70674538]
[1739818102514,30.70674538,176.19,176.13,90.06]
[1739818102897,30.70674538,176.2,176.14,30.70674538]
[1739818103213,30.70674538,176.22,176.16,30.70674538]
[1739818104031,0.063,176.25,176.21,30.70674538]
[1739818104234,0.063,176.25,176.24,30.70674538]
[1739818105530,0.063,176.25,176.24,44.11859391]
[1739818107608,6.79667762,176.37,176.28,13.41184853]
[1739818107848,0.063,176.37,176.33,30.70674538]
[1739818108419,1.12615985,176.37,176.32,30.70674538]
[1739818108623,0.063,176.37,176.32,30.70674538]
[1739818109225,1.12620833,176.37,176.32,30.70674538]
[1739818109426,0.063,176.37,176.36,30.70674538]
[1739818109828,0.063,176.37,176.32,30.70674538]
[1739818110029,0.063,176.37,176.33,30.70674538]
[1739818110236,0.063,176.37,176.36,30.70674538]
[1739818110547,0.063,176.37,176.35,30.70674538]
[1739818110718,0.063,176.37,176.33,30.70674538]
[1739818110924,36.43964538,176.37,176.31,30.70674538]
[1739818111124,30.70674538,176.36,176.3,30.70674538]
[1739818111332,5.7329,176.37,176.29,6.6436]
[1739818111333,0.063,176.37,176.32,30.70674538]
[1739818111645,1.12626227,176.37,176.32,30.70674538]
[1739818111824,31.83300765,176.37,176.31,30.70674538]
[1739818112225,1.12626227,176.37,176.31,30.70674538]
[1739818112421,31.83300765,176.37,176.31,30.70674538]
[1739818112646,30.70674538,176.35,176.29,30.70674538]
[1739818112826,30.70674538,176.36,176.29,30.70674538]
[1739818113028,31.77010096,176.36,176.3,30.70674538]
[1739818113227,1.06335558,176.36,176.31,30.70674538]
[1739818113443,0.063,176.37,176.35,30.70674538]
[1739818113640,0.063,176.37,176.34,30.70674538]
[1739818113835,0.063,176.37,176.33,30.70674538]
[1739818114044,0.063,176.37,176.34,30.70674538]
[1739818114637,0.063,176.37,176.33,30.70674538]
[1739818114846,0.063,176.37,176.32,30.70674538]
[1739818115231,0.063,176.36,176.32,30.70674538]
[1739818116024,0.063,176.36,176.33,30.70674538]
[1739818116225,0.063,176.36,176.35,30.70674538]
[1739818117447,0.063,176.36,176.34,30.70674538]
[1739818117850,0.063,176.36,176.35,30.70674538]
[1739818118651,0.063,176.36,176.34,30.70674538]
[1739818118949,0.063,176.36,176.35,50.70674538]
[1739818120230,0.063,176.36,176.32,30.70674538]
[1739818121150,0.063,176.36,176.34,30.70674538]
[1739818121340,0.063,176.36,176.33,50.70674538]
[1739818121539,0.063,176.36,176.34,30.70674538]
[1739818121850,0.063,176.36,176.35,30.70674538]
[1739818122453,0.063,176.36,176.33,20.0]
[1739818122833,0.063,176.36,176.33,50.70674538]
[1739818123959,0.063,176.36,176.35,30.70674538]
[1739818124259,0.063,176.36,176.35,44.11859391]
[1739818124850,0.063,176.36,176.35,30.70674538]
[1739818125050,0.063,176.36,176.34,30.70674538]
[1739818125447,0.063,176.36,176.35,50.70674538]
[1739818126158,0.063,176.36,176.35,20.0]
[1739818126634,0.063,176.36,176.35,50.70674538]
[1739818126830,0.063,176.36,176.35,50.20674538]
[1739818127147,0.063,176.36,176.35,63.11859391]
[1739818127556,36.37494538,176.42,176.35,49.70674538]
[1739818127849,5.6682,176.42,176.35,19.0]
[1739818128049,30.70674538,176.41,176.35,49.70674538]
[1739818128249,31.76983286,176.4,176.35,19.0]
[1739818128456,31.76983286,176.4,176.34,30.70674538]
[1739818129854,5.6692,176.39,176.34,30.70674538]
[1739818130741,37.43883286,176.4,176.34,30.70674538]
[1739818130942,31.76982859,176.41,176.35,30.70674538]